bitfinex-derivatives/quotes_SOLF0:USTF0_20250820
["timestamp","ask_amount","ask_price","bid_price","bid_amount"]
[1755707420456,0.03992372,184.6,184.56,3.04]
[1755707420764,2.91992372,184.6,184.53,7.51960103]
[1755707420965,2.91992372,184.6,184.53,3.04]
[1755707421855,0.03992372,184.6,184.53,7.51960103]
[1755707422057,0.03992372,184.6,184.54,3.04]
[1755707422461,0.03992372,184.6,184.54,7.51960103]
[1755707422859,0.03992372,184.6,184.54,3.04]
[1755707423061,0.03992372,184.6,184.54,7.51960103]
[1755707423358,0.03992372,184.6,184.54,3.04]
[1755707423560,0.03992372,184.6,184.56,5.4181]
[1755707423754,0.03992372,184.6,184.58,3.04]
[1755707423953,2.88,184.65,184.58,3.04]
[1755707424356,0.03651158,184.61,184.59,3.04]
[1755707424562,0.03651158,184.61,184.6,3.04]
[1755707425366,0.03651158,184.61,184.55,3.04]
[1755707425959,0.03651158,184.61,184.53,4.47960103]
[1755707426360,3.02656291,184.61,184.51,7.38960103]
[1755707426557,3.02656291,184.61,184.51,4.47960103]
[1755707426858,0.03651158,184.61,184.55,5.4183]
[1755707427066,0.03651158,184.61,184.53,2.91]
[1755707430472,0.03651158,184.61,184.53,8.3289]
[1755707430672,0.03651158,184.61,184.53,2.91]
[1755707430870,2.82,184.6,184.53,2.91]
[1755707431368,0.03651158,184.61,184.53,2.91]
[1755707431573,0.03651158,184.61,184.54,5.4186]
[1755707431962,0.03651158,184.61,184.53,2.91]
[1755707432565,0.03651158,184.61,184.56,2.99005133]
[1755707432760,0.03651158,184.61,184.6,8.3269]
[1755707433568,0.03651158,184.61,184.56,4.47960103]
[1755707433771,0.03651158,184.61,184.51,9.1499101]
[1755707433772,0.03651158,184.61,184.58,2.91]
[1755707434173,2.82,184.66,184.58,2.91]
[1755707434575,0.03946411,184.61,184.58,2.91]
[1755707436177,0.03946411,184.61,184.54,5.90005133]
[1755707436573,0.03946411,184.61,184.54,8.3286]
[1755707436777,0.03946411,184.61,184.54,2.91]
[1755707438871,0.03946411,184.61,184.54,8.3286]
[1755707440276,0.03946411,184.61,184.55,2.91]
[1755707440777,0.03946411,184.61,184.56,5.418]
[1755707441081,0.03946411,184.61,184.57,2.91]
[1755707441082,2.85946411,184.61,184.57,2.91]
[1755707441569,2.82,184.6,184.53,5.90005133]
[1755707441766,0.03946411,184.61,184.53,5.90005133]
[1755707441969,0.03946411,184.61,184.54,2.91]
[1755707442174,0.03946411,184.61,184.55,5.4183]
[1755707442575,0.03946411,184.61,184.54,2.91]
[1755707443376,0.03946411,184.61,184.57,5.4176]
[1755707443675,0.03946411,184.61,184.59,2.91]
[1755707444773,0.03946411,184.61,184.55,2.91]
[1755707445773,2.85946411,184.61,184.55,2.91]
[1755707445975,2.85946411,184.61,184.52,7.38960103]
[1755707446179,2.85946411,184.61,184.52,2.91]
[1755707446372,2.85946411,184.61,184.52,7.38960103]
[1755707446569,2.82,184.59,184.51,4.47960103]
[1755707446773,2.82,184.59,184.49,4.47960103]
[1755707447474,2.85428552,184.56,184.49,4.47960103]
[1755707447673,2.85428552,184.56,184.48,4.47960103]
[1755707447874,2.85428552,184.56,184.47,4.47960103]
[1755707448679,2.82,184.53,184.45,4.47960103]
[1755707449182,2.99005133,184.48,184.42,4.47960103]
[1755707449477,2.82,184.47,184.4,2.91]
[1755707449681,5.81005133,184.51,184.42,5.4222]
[1755707449878,2.82,184.51,184.41,5.90005133]
[1755707450178,0.03765308,184.48,184.42,2.91]
[1755707450380,0.03765308,184.48,184.42,4.47960103]
[1755707450575,0.03765308,184.48,184.44,7.38960103]
[1755707450778,0.03765308,184.48,184.46,2.91]
[1755707451174,0.03765308,184.48,184.47,2.91]
[1755707451787,0.03765308,184.48,184.45,2.91]
[1755707452176,0.03765308,184.48,184.43,4.47960103]
[1755707452177,0.03765308,184.48,184.46,2.91]
[1755707452480,0.03765308,184.48,184.44,4.47960103]
[1755707452481,0.03765308,184.48,184.47,2.91]
[1755707452679,0.03765308,184.48,184.47,8.3307]
[1755707452877,0.03765308,184.48,184.47,2.91]
[1755707453776,0.03765308,184.48,184.47,8.3307]
[1755707454375,0.03765308,184.48,184.47,12.81030103]
[1755707455086,0.03765308,184.48,184.47,4.47960103]
[1755707455682,2.86765308,184.48,184.45,4.47960103]
[1755707455884,2.86765308,184.48,184.46,4.47960103]
[1755707456182,0.03765308,184.48,184.44,7.39960103]
[1755707456585,0.03765308,184.48,184.45,4.47960103]
[1755707456778,0.03765308,184.48,184.45,7.39960103]
[1755707456981,0.03765308,184.48,184.46,7.39960103]
[1755707457182,2.86765308,184.48,184.44,4.47960103]
[1755707457387,2.83,184.47,184.44,4.47960103]
[1755707457582,2.83,184.55,184.44,4.47960103]
[1755707457888,2.83,184.55,184.45,5.4212]
[1755707458091,0.03789526,184.47,184.44,4.47960103]
[1755707458279,2.83,184.51,184.44,7.39960103]
[1755707458483,2.83,184.51,184.44,4.47960103]
[1755707458683,0.03637722,184.47,184.44,4.47960103]
[1755707458886,0.03637722,184.47,184.44,7.39960103]
[1755707459584,0.03637722,184.47,184.44,2.92]
[1755707460186,0.03637722,184.47,184.43,4.47960103]
[1755707460389,2.83,184.45,184.42,4.47960103]
[1755707460692,2.83,184.44,184.42,4.47960103]
[1755707461096,2.83,184.46,184.4,4.47960103]
[1755707461288,2.83,184.46,184.38,4.47960103]
[1755707461484,2.83,184.43,184.37,4.47960103]
[1755707461699,2.83,184.4,184.35,4.47960103]
[1755707461888,2.99005133,184.41,184.35,4.47960103]
[1755707462188,2.83,184.4,184.35,4.47960103]
[1755707462394,2.83,184.4,184.33,2.92]
[1755707462989,2.86556,184.38,184.33,2.92]
[1755707463290,2.83,184.37,184.31,9.90500103]
[1755707463491,0.03556,184.38,184.32,2.92]
[1755707463799,0.03556,184.38,184.34,2.92]
[1755707464190,0.03556,184.38,184.32,4.47960103]
[1755707464389,0.03556,184.38,184.36,2.92]
[1755707464591,0.03556,184.38,184.34,4.47960103]
[1755707464796,0.03556,184.38,184.35,2.92]
[1755707465096,0.03556,184.38,184.34,4.47960103]
[1755707465394,0.03556,184.38,184.35,2.92]
[1755707465786,0.03556,184.38,184.35,8.344]
[1755707465983,0.03556,184.38,184.35,2.92]
[1755707466188,0.03556,184.38,184.33,4.47960103]
[1755707466387,0.03556,184.38,184.35,2.92]
[1755707466991,0.03556,184.38,184.31,7.39960103]
[1755707467198,2.83,184.37,184.3,4.47960103]
[1755707467396,2.83,184.37,184.29,4.47960103]
[1755707467596,2.83,184.37,184.3,2.92]
[1755707467898,364.2,184.49,184.3,2.92]
[1755707467899,2.83,184.42,184.31,2.92]
[1755707468598,2.83,184.42,184.31,7.39960103]
[1755707468792,0.03752376,184.38,184.31,7.39960103]
[1755707469099,0.03752376,184.38,184.32,2.92]
[1755707469294,0.03752376,184.38,184.37,5.4237]
[1755707469591,0.03752376,184.38,184.32,4.47960103]
[1755707469791,0.03752376,184.38,184.37,2.92]
[1755707469996,0.03752376,184.38,184.37,8.3437]
[1755707470493,2.83,184.46,184.37,2.92]
[1755707471000,364.2,184.49,184.43,5.4217]
[1755707471195,2.83,184.5,184.41,2.92]
[1755707471593,2.83,184.5,184.42,5.4221]
[1755707471795,2.83,184.5,184.41,2.92]
[1755707471993,2.83,184.5,184.44,0.03589359]
[1755707476106,2.83,184.5,184.44,5.45749359]
[1755707476404,2.83,184.5,184.44,0.03589359]
[1755707476608,2.83,184.54,184.46,5.4209]
[1755707476797,2.83,184.54,184.44,2.95589359]
[1755707477005,2.83,184.54,184.48,5.4202]
[1755707477205,2.83,184.54,184.47,2.92]
[1755707477509,2.83,184.54,184.47,8.37840548]
[1755707477708,2.83,184.54,184.47,2.95780548]
[1755707477902,2.83,184.54,184.47,0.03780548]
[1755707480111,139.62,184.53,184.47,0.03780548]
[1755707480704,2.83,184.49,184.47,0.03780548]
[1755707481909,2.83,184.48,184.47,0.03780548]
[1755707482598,3.37,184.48,184.37,2.92]
[1755707482802,2.83,184.48,184.37,2.92]
[1755707483398,2.83,184.48,184.37,7.39960103]
[1755707483606,2.83,184.48,184.38,5.4233]
[1755707483811,2.83,184.48,184.37,4.47960103]
[1755707484000,0.03444627,184.44,184.38,2.92]
[1755707484404,0.03444627,184.44,184.39,4.47960103]
[1755707484707,0.03444627,184.44,184.43,5.4219]
[1755707484913,0.03444627,184.44,184.43,8.3419]
[1755707485404,0.03444627,184.44,184.39,62.0]
[1755707485405,0.03444627,184.44,184.41,2.92]
[1755707485609,0.03444627,184.44,184.42,2.92]
[1755707486206,0.03444627,184.44,184.39,4.47960103]
[1755707486403,2.85,184.54,184.43,3.01]
[1755707486703,2.85,184.54,184.44,3.01]
[1755707486906,2.99314081,184.57,184.44,3.01]
[1755707487609,2.99314081,184.57,184.44,7.48960103]
[1755707487812,2.99314081,184.57,184.49,0.03643955]
[1755707488111,2.85,184.56,184.49,0.03643955]
[1755707491206,115.56659196,184.58,184.49,0.03643955]
[1755707491508,115.56659196,184.58,184.5,3.01]
[1755707491708,2.85,184.58,184.5,3.01]
[1755707492815,2.85,184.58,184.49,0.03643955]
[1755707493716,142.41,184.58,184.49,0.03643955]
[1755707494015,2.85,184.56,184.49,0.03643955]
[1755707494612,1.35526046,184.55,184.49,0.03643955]
[1755707494807,2.85,184.54,184.49,0.03643955]
[1755707495018,2.85,184.52,184.49,0.03643955]
[1755707495513,2.85,184.57,184.49,0.03643955]
[1755707495706,1.35524795,184.56,184.49,0.03643955]
[1755707495911,2.85,184.55,184.49,0.03643955]
[1755707497016,142.41,184.55,184.49,0.03643955]
[1755707497220,1.35532532,184.54,184.49,3.04643955]
[1755707497518,142.41,184.55,184.5,3.01]
[1755707498116,139.56,184.55,184.49,0.03643955]
[1755707502026,139.56,184.55,184.49,3.04643955]
[1755707502529,2.85,184.56,184.49,3.04643955]
[1755707504126,2.85,184.62,184.5,3.01]
[1755707504325,1.35508999,184.61,184.5,3.01]
[1755707505028,1.35508999,184.61,184.54,5.45752166]
[1755707505415,2.85,184.62,184.54,5.45752166]
[1755707505922,2.85,184.62,184.54,0.03902166]
[1755707506522,2.85,184.62,184.54,5.45772166]
[1755707507125,2.85,184.62,184.54,0.03902166]
[1755707507330,139.52,184.65,184.55,3.01]
[1755707508124,139.52,184.65,184.58,5.45822454]
[1755707508329,139.52,184.65,184.58,8.46822454]
[1755707508728,139.52,184.65,184.58,3.05092454]
[1755707509324,139.52,184.65,184.58,0.04092454]
[1755707509325,2.85,184.64,184.58,0.04092454]
[1755707510031,2.85,184.62,184.49,7.48960103]
[1755707510223,2.85,184.62,184.49,3.01]
[1755707510422,2.991434,184.57,184.49,3.01]
[1755707510625,139.5,184.58,184.49,3.01]
[1755707510827,139.5,184.58,184.5,4.47960103]
[1755707511227,2.991434,184.63,184.51,3.01]
[1755707511425,0.03746724,184.56,184.52,3.01]
[1755707511621,0.03746724,184.56,184.55,3.01]
[1755707512528,0.03746724,184.56,184.55,8.4284]
[1755707512920,364.3,184.66,184.55,3.55]
[1755707513121,364.3,184.66,184.59,5.417]
[1755707513330,367.15,184.66,184.58,3.01]
[1755707513926,2.85,184.65,184.54,3.01]
[1755707514120,2.85,184.65,184.55,5.4183]
[1755707514326,2.85,184.65,184.6,0.0401218]
[1755707514524,364.3,184.66,184.6,0.0401218]
[1755707514730,2.85,184.61,184.51,4.47960103]
[1755707514934,2.85,184.6,184.5,7.48960103]
[1755707515234,2.85,184.6,184.51,5.4195]
[1755707515726,2.85,184.6,184.52,5.4192]
[1755707516031,0.03707979,184.57,184.52,5.4192]
[1755707516227,0.03707979,184.57,184.53,2.99]
[1755707516431,3.12707979,184.57,184.49,7.46960103]
[1755707517126,3.12707979,184.57,184.49,2.99]
[1755707517332,0.03707979,184.57,184.49,2.99]
[1755707518132,0.03707979,184.57,184.55,2.99]
[1755707518524,0.03707979,184.57,184.49,4.47960103]
[1755707518821,0.03707979,184.57,184.5,2.99]
[1755707519830,0.03707979,184.57,184.5,8.4098]
[1755707520223,0.03707979,184.57,184.5,7.46960103]
[1755707520425,0.03707979,184.57,184.5,12.45116768]
[1755707520727,0.03707979,184.57,184.56,5.4181]
[1755707520930,0.03707979,184.57,184.56,8.4081]
[1755707521130,0.03707979,184.57,184.56,8.9481]
[1755707521326,0.03707979,184.57,184.56,2.99]
[1755707521528,0.03707979,184.57,184.55,5.4183]
[1755707521831,0.03707979,184.57,184.54,2.99]
[1755707522129,0.03707979,184.57,184.56,2.99]
[1755707522332,115.1554055,184.67,184.56,2.99]
[1755707522527,115.1554055,184.67,184.6,5.4169]
[1755707522728,115.1554055,184.67,184.56,2.99]
[1755707523132,115.1554055,184.67,184.6,5.4168]
[1755707523534,115.1554055,184.67,184.62,0.03434688]
[1755707523734,3.09,184.65,184.62,0.03434688]
[1755707523926,115.1554055,184.67,184.62,0.03434688]
[1755707523927,3.09,184.66,184.62,0.03434688]
[1755707524122,115.1554055,184.67,184.62,0.03434688]
[1755707524329,3.09,184.66,184.62,0.03434688]
[1755707524531,3.09,184.65,184.62,0.03434688]
[1755707524731,3.09,184.63,184.62,0.03434688]
[1755707525429,3.09,184.66,184.62,0.03434688]
[1755707525633,115.1554055,184.67,184.62,3.02434688]
[1755707525832,3.09,184.7,184.63,2.99]
[1755707526137,139.44,184.73,184.63,2.99]
[1755707526332,139.44,184.73,184.64,5.4157]
[1755707526526,139.44,184.73,184.63,2.99]
[1755707526923,139.44,184.73,184.67,0.03802651]
[1755707529830,3.09,184.72,184.67,0.03802651]
[1755707530043,4.98156665,184.72,184.67,0.03802651]
[1755707530238,3.09,184.7,184.67,0.03802651]
[1755707530536,3.09,184.68,184.67,0.03802651]
[1755707530742,3.09,184.68,184.57,4.47960103]
[1755707530743,142.51,184.68,184.56,7.46960103]
[1755707530945,142.51,184.68,184.57,5.4176]
[1755707531238,142.51,184.68,184.57,9.89720103]
[1755707531536,139.42,184.68,184.56,7.46960103]
[1755707531734,3.09,184.67,184.56,7.46960103]
[1755707531934,0.03477741,184.64,184.56,7.46960103]
[1755707532232,0.03477741,184.64,184.56,2.99]
[1755707532634,3.12477741,184.64,184.56,2.99]
[1755707533438,3.12477741,184.64,184.56,8.4081]
[1755707534141,3.12477741,184.64,184.56,2.99]
[1755707534935,0.03477741,184.64,184.56,2.99]
[1755707535941,0.03477741,184.64,184.57,5.4177]
[1755707536246,0.03477741,184.64,184.56,2.99]
[1755707536634,0.03477741,184.64,184.56,8.408]
[1755707536834,0.03477741,184.64,184.56,2.99]
[1755707537046,0.03477741,184.64,184.56,8.408]
[1755707537448,0.03477741,184.64,184.56,2.99]
[1755707537746,0.03477741,184.64,184.58,5.4174]
[1755707537938,0.03477741,184.64,184.59,2.99]
[1755707538135,0.03477741,184.64,184.55,2.99]
[1755707538336,0.03477741,184.64,184.55,7.46960103]
[1755707538541,0.03477741,184.64,184.55,2.99]
[1755707538938,0.03477741,184.64,184.57,2.99]
[1755707539138,3.09,184.63,184.52,7.46960103]
[1755707539341,3.09,184.63,184.52,2.99]
[1755707539549,3.09,184.63,184.53,2.99]
[1755707539744,0.03577513,184.59,184.53,2.99]
[1755707540147,0.03577513,184.59,184.54,5.4186]
[1755707540338,0.03577513,184.59,184.55,2.99]
[1755707540738,0.03577513,184.59,184.53,5.4189]
[1755707541044,3.09,184.58,184.5,4.47960103]
[1755707541247,3.09,184.58,184.48,4.47960103]
[1755707541445,3.09,184.58,184.47,4.47960103]
[1755707541851,0.03650407,184.55,184.47,4.47960103]
[1755707542047,3.12650407,184.55,184.47,4.47960103]
[1755707542553,3.12650407,184.55,184.46,4.47960103]
[1755707542755,8.10807072,184.55,184.43,4.47960103]
[1755707543047,3.12650407,184.55,184.44,2.99]
[1755707543250,3.09,184.55,184.44,2.99]
[1755707543450,3.09,184.55,184.47,5.4205]
[1755707543652,0.04133138,184.51,184.47,8.4105]
[1755707543849,0.04133138,184.51,184.48,2.99]
[1755707544347,0.04133138,184.51,184.44,12.89100103]
[1755707544550,0.04133138,184.51,184.44,2.99]
[1755707544948,0.04133138,184.51,184.44,7.46960103]
[1755707545152,0.04133138,184.51,184.45,2.99]
[1755707546447,0.04133138,184.51,184.45,8.4111]
[1755707546848,0.04133138,184.51,184.45,2.99]
[1755707547246,0.04133138,184.51,184.43,4.47960103]
[1755707547555,0.04133138,184.51,184.41,7.47960103]
[1755707547761,0.04133138,184.51,184.39,4.47960103]
[1755707547762,2.98,184.5,184.39,4.47960103]
[1755707547962,2.98,184.5,184.39,7.47960103]
[1755707548654,0.03920537,184.46,184.39,3.0]
[1755707548855,0.03920537,184.46,184.39,7.47960103]
[1755707549059,0.03920537,184.46,184.4,3.0]
[1755707549357,0.03920537,184.46,184.4,7.47960103]
[1755707549553,0.03920537,184.46,184.42,7.47960103]
[1755707549757,0.03920537,184.46,184.44,3.0]
[1755707549959,0.03920537,184.46,184.45,3.0]
[1755707550556,0.03920537,184.46,184.45,8.4213]
[1755707552263,0.03920537,184.46,184.45,8.9613]
[1755707553668,0.03920537,184.46,184.41,7.47960103]
[1755707553869,0.03920537,184.46,184.42,4.47960103]
[1755707554163,0.03920537,184.46,184.43,8.4216]
[1755707554364,0.03920537,184.46,184.39,4.47960103]
[1755707554557,0.03920537,184.46,184.39,7.47960103]
[1755707555361,0.03920537,184.46,184.39,3.0]
[1755707555756,0.03920537,184.46,184.39,8.423]
[1755707555955,0.03920537,184.46,184.39,3.0]
[1755707556566,2.98,184.45,184.36,4.47960103]
[1755707557469,0.03693715,184.42,184.35,3.0]
[1755707557762,3.01693715,184.42,184.34,0.94320446]
[1755707559067,3.01693715,184.42,184.36,5.4239]
[1755707559268,3.01693715,184.42,184.34,0.94320446]
[1755707559461,3.01693715,184.42,184.31,3.0]
[1755707559863,3.01693715,184.42,184.31,9.36921042]
[1755707560058,3.01693715,184.42,184.31,3.94401042]
[1755707560868,3.01693715,184.42,184.33,5.4246]
[1755707561463,3.01693715,184.42,184.31,3.94401042]
[1755707562163,3.01693715,184.42,184.32,3.0]
[1755707562365,0.03693715,184.42,184.32,3.0]
[1755707562564,0.03693715,184.42,184.37,8.4236]
[1755707562965,3.01693715,184.42,184.33,3.0]
[1755707563264,0.03693715,184.42,184.33,3.0]
[1755707563769,0.03693715,184.42,184.31,0.94401042]
[1755707563770,0.03693715,184.42,184.39,5.4229]
[1755707563968,0.03693715,184.42,184.32,3.0]
[1755707564269,0.03693715,184.42,184.38,5.4233]
[1755707564467,0.03693715,184.42,184.35,3.0]
[1755707564963,2.98,184.41,184.31,0.94401042]
[1755707565166,2.98,184.41,184.32,3.0]
[1755707565361,2.98,184.41,184.31,0.94401042]
[1755707565562,2.98,184.38,184.25,3.0]
[1755707565758,3.02053012,184.38,184.26,0.94422813]
[1755707566163,2.98,184.38,184.26,0.94422813]
[1755707566363,0.04117945,184.34,184.26,0.94422813]
[1755707566872,0.04117945,184.34,184.27,5.4264]
[1755707567370,0.04117945,184.34,184.26,0.94422813]
[1755707568073,0.04117945,184.34,184.27,3.0]
[1755707569466,0.04117945,184.34,184.33,5.4248]
[1755707569672,0.04117945,184.34,184.33,8.4248]
[1755707570969,0.04117945,184.34,184.33,3.0]
[1755707571270,0.04117945,184.34,184.28,7.98156665]
[1755707571462,0.04117945,184.34,184.3,5.4257]
[1755707572975,0.04117945,184.34,184.3,8.4257]
[1755707573173,0.04117945,184.34,184.29,5.4259]
[1755707573370,3.02117945,184.34,184.29,5.4259]
[1755707574168,2.98,184.33,184.21,3.0]
[1755707574569,2.98,184.33,184.22,0.94436906]
[1755707574978,0.03680485,184.29,184.22,0.94436906]
[1755707575179,0.03680485,184.29,184.22,6.37236906]
[1755707575477,0.03680485,184.29,184.22,0.94436906]
[1755707575875,0.03680485,184.29,184.22,6.37226906]
[1755707576074,0.03680485,184.29,184.22,0.94436906]
[1755707577575,0.03680485,184.29,184.24,8.5173]
[1755707578276,2.92680485,184.29,184.24,8.5173]
[1755707578478,0.03680485,184.29,184.24,8.5173]
[1755707578775,0.03680485,184.29,184.25,5.4271]
[1755707578974,0.03680485,184.29,184.23,3.09]
[1755707580079,0.03680485,184.29,184.28,8.5163]
[1755707581169,0.03680485,184.29,184.25,3.09]
[1755707581371,0.03680485,184.29,184.23,7.56960103]
[1755707581780,0.03680485,184.29,184.27,5.4266]
[1755707583080,0.03680485,184.29,184.23,4.47960103]
[1755707583479,0.03680485,184.29,184.22,8.51397009]
[1755707584478,2.89,184.28,184.22,8.51397009]
[1755707584983,2.89,184.28,184.22,0.94436906]
[1755707585290,2.89,184.28,184.22,5.42397009]
[1755707585788,2.89,184.28,184.22,0.94436906]
[1755707586484,2.89,184.28,184.22,5.42397009]
[1755707586678,2.89,184.27,184.22,8.51397009]
[1755707586879,2.89,184.27,184.22,5.42397009]
[1755707587186,2.89,184.28,184.22,5.42397009]
[1755707587685,2.89,184.28,184.22,0.94436906]
[1755707587879,2.89,184.28,184.22,5.42397009]
[1755707588381,0.03680485,184.29,184.25,8.5172]
[1755707588579,0.03680485,184.29,184.25,3.09]
[1755707588986,0.03680485,184.29,184.26,5.4267]
[1755707589284,0.03680485,184.29,184.25,3.09]
[1755707589488,2.92680485,184.29,184.23,9.90720103]
[1755707589787,2.92680485,184.29,184.23,4.47960103]
[1755707590284,2.92680485,184.29,184.22,5.42397009]
[1755707590685,2.92680485,184.29,184.23,5.4277]
[1755707590885,2.92680485,184.29,184.22,5.42397009]
[1755707591280,2.92680485,184.29,184.23,4.47960103]
[1755707591584,0.03680485,184.29,184.25,3.09]
[1755707591981,0.03680485,184.29,184.24,4.47960103]
[1755707592178,0.03680485,184.29,184.26,3.09]
[1755707592377,0.03680485,184.29,184.25,5.4271]
[1755707592785,0.03680485,184.29,184.25,8.5171]
[1755707592992,2.89,184.28,184.24,4.47960103]
[1755707593189,2.89,184.26,184.23,4.47960103]
[1755707593481,0.03680485,184.29,184.22,5.42397009]
[1755707593482,2.89,184.25,184.22,5.42397009]
[1755707593837,2.89,184.24,184.23,4.47960103]
[1755707593986,0.03680485,184.29,184.23,4.47960103]
[1755707594186,2.92680485,184.29,184.22,5.42397009]
[1755707594488,2.92680485,184.29,184.23,4.47960103]
[1755707594687,2.92680485,184.29,184.23,5.4276]
[1755707594886,2.92680485,184.29,184.23,4.47960103]
[1755707595189,0.03680485,184.29,184.25,8.517]
[1755707595483,0.03680485,184.29,184.25,3.09]
[1755707595689,0.03680485,184.29,184.26,3.09]
[1755707595892,0.03680485,184.29,184.27,5.4264]
[1755707596190,0.03680485,184.29,184.27,3.09]
[1755707596584,0.03680485,184.29,184.26,7.56960103]
[1755707596788,0.03680485,184.29,184.28,8.5163]
[1755707596990,2.89,184.44,184.28,3.09]
[1755707597196,2.89,184.44,184.3,3.09]
[1755707597488,2.89,184.44,184.31,7.56960103]
[1755707598085,2.89,184.44,184.31,3.09]
[1755707598483,2.89,184.44,184.36,0.03942998]
[1755707608298,4.98156665,184.42,184.36,0.03942998]
[1755707608492,2.8,184.41,184.36,0.03942998]
[1755707608794,4.98156665,184.42,184.36,0.03942998]
[1755707609397,2.8,184.4,184.36,0.03942998]
[1755707609699,2.8,184.39,184.36,0.03942998]
[1755707609905,2.8,184.4,184.36,0.03942998]
[1755707610197,2.8,184.38,184.36,0.03942998]
[1755707611796,2.8,184.37,184.36,0.03942998]
[1755707614604,143.98,184.39,184.36,0.03942998]
[1755707614991,141.18,184.39,184.36,0.03942998]
[1755707615298,2.8,184.38,184.36,0.03942998]
[1755707615490,491.08270479,184.45,184.36,2.96942998]
[1755707615491,2.8,184.44,184.36,2.96942998]
[1755707615696,141.04,184.43,184.36,2.96942998]
[1755707617002,474.79270479,184.45,184.36,2.96942998]
[1755707617302,140.92,184.44,184.36,8.39312998]
[1755707617497,474.79270479,184.45,184.36,2.96942998]
[1755707617702,615.65270479,184.45,184.36,2.96942998]
[1755707617997,6.0674106,184.53,184.37,7.40960103]
[1755707618202,2.8,184.52,184.38,7.40960103]
[1755707618404,2.8,184.5,184.39,5.4229]
[1755707618698,2.8,184.5,184.38,7.40960103]
[1755707618905,2.8,184.5,184.43,0.03735966]
[1755707620901,370.6074106,184.56,184.43,0.03735966]
[1755707621204,143.52,184.55,184.44,2.93]
[1755707621599,2.8,184.55,184.48,0.0401161]
[1755707621804,140.7,184.54,184.48,0.0401161]
[1755707622794,2.8,184.52,184.48,0.0401161]
[1755707622993,2.8,184.49,184.48,0.0401161]
[1755707625006,8.32156665,184.49,184.39,2.93]
[1755707625204,143.42,184.48,184.39,2.93]
[1755707626308,0.03593074,184.45,184.39,2.93]
[1755707626705,2.83593074,184.45,184.35,8.3542]
[1755707627600,0.03593074,184.45,184.36,2.93]
[1755707627997,0.03593074,184.45,184.36,4.47960103]
[1755707628204,0.03593074,184.45,184.39,2.93]
[1755707628709,0.03593074,184.45,184.39,8.353]
[1755707629506,0.03593074,184.45,184.4,5.4227]
[1755707629905,0.03593074,184.45,184.42,2.93]
[1755707630203,0.03593074,184.45,184.44,2.93]
[1755707630807,0.03593074,184.45,184.38,2.93]
[1755707632413,2.83593074,184.45,184.38,2.93]
[1755707633301,2.83593074,184.45,184.34,2.93]
[1755707633811,2.8,184.45,184.34,2.93]
[1755707634115,0.03877817,184.41,184.34,2.93]
[1755707635315,0.03877817,184.41,184.31,4.47960103]
[1755707635609,0.03877817,184.41,184.3,12.83530103]
[1755707635814,0.03877817,184.41,184.3,8.3557]
[1755707636111,0.03877817,184.41,184.3,7.40960103]
[1755707636708,2.96,184.4,184.3,7.40960103]
[1755707636910,2.96,184.4,184.3,2.93]
[1755707637616,0.03658985,184.37,184.3,2.93]
[1755707638416,0.03658985,184.37,184.3,8.3557]
[1755707639016,0.03658985,184.37,184.3,2.93]
[1755707640017,2.96,184.36,184.28,4.47960103]
[1755707640208,2.96,184.36,184.27,7.48960103]
[1755707640610,2.96,184.36,184.27,12.91600103]
[1755707640915,2.96,184.36,184.27,7.48960103]
[1755707641915,2.96,184.36,184.26,4.47960103]
[1755707642117,2.96,184.36,184.25,4.47960103]
[1755707642721,0.03684622,184.32,184.25,4.47960103]
[1755707642916,0.03684622,184.32,184.25,9.90660103]
[1755707643118,0.03684622,184.32,184.25,4.47960103]
[1755707643614,0.03684622,184.32,184.26,3.01]
[1755707643809,0.03684622,184.32,184.27,4.47960103]
[1755707644119,0.03684622,184.32,184.31,3.01]